[Event "*** Titled Tuesday 3|2 Blitz (Early)"]
[Site "Chess.com"]
[Date "2016.11.01"]
[Round "2"]
[White "Akshayraj_Kore"]
[Black "NTBT_DHS"]
[Result "1-0"]
[WhiteElo "2345"]
[BlackElo "2491"]
[TimeControl "180+2"]
[EndTime "11:23:02 PDT"]
[Termination "Akshayraj_Kore won by checkmate"]

1. e4 {[%clk 0:03:01.9]} 1... g6 {[%clk 0:03:00.9]} 2. d4 {[%clk 0:03:02]} 2...
Bg7 {[%clk 0:03:01.7]} 3. h4 {[%clk 0:03:03.2]} 3... d5 {[%clk 0:02:43.6]} 4. e5
{[%clk 0:02:58.5]} 4... h5 {[%clk 0:02:37.5]} 5. Nf3 {[%clk 0:02:48.7]} 5... Nh6
{[%clk 0:02:34.7]} 6. c4 {[%clk 0:02:45.6]} 6... c6 {[%clk 0:02:35]} 7. Nc3
{[%clk 0:02:46.6]} 7... dxc4 {[%clk 0:02:30.7]} 8. Bxc4 {[%clk 0:02:46.6]} 8...
Bg4 {[%clk 0:02:30.1]} 9. Be3 {[%clk 0:01:48.7]} 9... Nf5 {[%clk 0:02:28.3]} 10.
Qd3 {[%clk 0:01:47.7]} 10... b5 {[%clk 0:02:19.2]} 11. Bb3 {[%clk 0:01:38.6]}
11... Bxf3 {[%clk 0:02:19.9]} 12. gxf3 {[%clk 0:01:39.4]} 12... Bxe5 {[%clk
0:02:21.1]} 13. Nxb5 {[%clk 0:01:40.4]} 13... O-O {[%clk 0:02:15.1]} 14. Rg1
{[%clk 0:01:38]} 14... Kh7 {[%clk 0:01:45.8]} 15. Nc3 {[%clk 0:01:31.3]} 15...
Bxd4 {[%clk 0:01:40.9]} 16. Rd1 {[%clk 0:01:20.3]} 16... Bxc3+ {[%clk
0:01:01.7]} 17. Qxc3 {[%clk 0:01:21.3]} 17... Qc7 {[%clk 0:01:02.9]} 18. Rg5
{[%clk 0:01:15.4]} 18... e6 {[%clk 0:00:55]} 19. Bc5 {[%clk 0:01:11.6]} 19...
Rd8 {[%clk 0:00:51]} 20. Qf6 {[%clk 0:01:04.7]} 20... Na6 {[%clk 0:00:48.2]} 21.
Rxd8 {[%clk 0:00:46.5]} 21... Rxd8 {[%clk 0:00:48.2]} 22. Be3 {[%clk 0:00:32.9]}
22... Rg8 {[%clk 0:00:37.5]} 23. Qc3 {[%clk 0:00:24.9]} 23... c5 {[%clk
0:00:31.6]} 24. Bc2 {[%clk 0:00:24.7]} 24... Nb4 {[%clk 0:00:27.4]} 25. Bxf5
{[%clk 0:00:20.4]} 25... exf5 {[%clk 0:00:28.5]} 26. Qc4 {[%clk 0:00:18]} 26...
Qe7 {[%clk 0:00:24.4]} 27. Kf1 {[%clk 0:00:18]} 27... Nc6 {[%clk 0:00:18.5]} 28.
Bxc5 {[%clk 0:00:18.5]} 28... Qe6 {[%clk 0:00:19.6]} 29. Qxe6 {[%clk 0:00:17.9]}
29... fxe6 {[%clk 0:00:20.5]} 30. Ke2 {[%clk 0:00:19.2]} 30... Ne5 {[%clk
0:00:21.6]} 31. Rg1 {[%clk 0:00:19.2]} 31... Rb8 {[%clk 0:00:22.3]} 32. b3
{[%clk 0:00:19.7]} 32... Rb5 {[%clk 0:00:23]} 33. Bd4 {[%clk 0:00:19.6]} 33...
Nc6 {[%clk 0:00:23.9]} 34. Bc3 {[%clk 0:00:20.3]} 34... Rc5 {[%clk 0:00:23.8]}
35. Kd3 {[%clk 0:00:21.2]} 35... e5 {[%clk 0:00:24.4]} 36. b4 {[%clk 0:00:20.8]}
36... Rd5+ {[%clk 0:00:23.1]} 37. Kc4 {[%clk 0:00:22.1]} 37... Rd7 {[%clk
0:00:22.7]} 38. Re1 {[%clk 0:00:23.4]} 38... Kg8 {[%clk 0:00:22.6]} 39. b5
{[%clk 0:00:24.5]} 39... Ne7 {[%clk 0:00:22.8]} 40. Rxe5 {[%clk 0:00:25.3]}
40... Kf7 {[%clk 0:00:24.5]} 41. a4 {[%clk 0:00:25.7]} 41... Rc7+ {[%clk
0:00:25.7]} 42. Rc5 {[%clk 0:00:26.8]} 42... Rd7 {[%clk 0:00:25.9]} 43. Bd4
{[%clk 0:00:28.1]} 43... Ke6 {[%clk 0:00:25.5]} 44. Re5+ {[%clk 0:00:29]} 44...
Kf7 {[%clk 0:00:25]} 45. a5 {[%clk 0:00:29.2]} 45... Nc8 {[%clk 0:00:25.4]} 46.
Bc5 {[%clk 0:00:30]} 46... Rc7 {[%clk 0:00:26.9]} 47. Kb4 {[%clk 0:00:29.2]}
47... Kf6 {[%clk 0:00:27.5]} 48. f4 {[%clk 0:00:30.4]} 48... Rd7 {[%clk
0:00:27.3]} 49. Re8 {[%clk 0:00:28.5]} 49... Nd6 {[%clk 0:00:25.6]} 50. Bxd6
{[%clk 0:00:21.2]} 50... Rxd6 {[%clk 0:00:26.8]} 51. b6 {[%clk 0:00:21.4]} 51...
axb6 {[%clk 0:00:25.5]} 52. a6 {[%clk 0:00:22.7]} 52... Rd7 {[%clk 0:00:19.7]}
53. Kb5 {[%clk 0:00:23.9]} 53... Kf7 {[%clk 0:00:20.8]} 54. Re3 {[%clk
0:00:20.7]} 54... Rd1 {[%clk 0:00:19.4]} 55. Ra3 {[%clk 0:00:21.4]} 55... Rb1+
{[%clk 0:00:18.6]} 56. Kc6 {[%clk 0:00:22.4]} 56... b5 {[%clk 0:00:18.2]} 57. a7
{[%clk 0:00:23.1]} 57... b4 {[%clk 0:00:19.8]} 58. Ra6 {[%clk 0:00:23.6]} 58...
Rc1+ {[%clk 0:00:20.9]} 59. Kb5 {[%clk 0:00:23.2]} 59... b3 {[%clk 0:00:21.2]}
60. a8=Q {[%clk 0:00:23.1]} 60... b2 {[%clk 0:00:22.6]} 61. Qd5+ {[%clk
0:00:23.6]} 61... Kg7 {[%clk 0:00:20.8]} 62. Qe5+ {[%clk 0:00:24.7]} 62... Kh6
{[%clk 0:00:21.5]} 63. Qh8# {[%clk 0:00:25.5]} 1-0

[Event "*** Titled Tuesday 3|2 Blitz (Early)"]
[Site "Chess.com"]
[Date "2016.11.01"]
[Round "2"]
[White "LawrenceTrent"]
[Black "FlySooHigh"]
[Result "1-0"]
[WhiteElo "2515"]
[BlackElo "2429"]
[TimeControl "180+2"]
[EndTime "11:23:17 PDT"]
[Termination "LawrenceTrent won by resignation"]

1. e4 {[%clk 0:03:00]} 1... d5 {[%clk 0:03:00.3]} 2. exd5 {[%clk 0:03:00]} 2...
Nf6 {[%clk 0:03:01.2]} 3. Nf3 {[%clk 0:03:00]} 3... Nxd5 {[%clk 0:03:01.9]} 4.
d4 {[%clk 0:03:00.8]} 4... g6 {[%clk 0:03:02.3]} 5. c4 {[%clk 0:02:59.5]} 5...
Nb6 {[%clk 0:03:03.2]} 6. c5 {[%clk 0:02:57.5]} 6... Nd5 {[%clk 0:03:03.4]} 7.
Bc4 {[%clk 0:02:58.4]} 7... Bg7 {[%clk 0:03:04.2]} 8. Qb3 {[%clk 0:02:57.1]}
8... c6 {[%clk 0:03:02.9]} 9. Nc3 {[%clk 0:02:56.3]} 9... O-O {[%clk 0:03:03.1]}
10. Nxd5 {[%clk 0:02:45.7]} 10... cxd5 {[%clk 0:03:05]} 11. Bxd5 {[%clk
0:02:46.7]} 11... Nc6 {[%clk 0:03:06.5]} 12. O-O {[%clk 0:02:43.2]} 12... Na5
{[%clk 0:02:56.1]} 13. Qa4 {[%clk 0:02:40.2]} 13... Qxd5 {[%clk 0:02:56.1]} 14.
Qxa5 {[%clk 0:02:40.8]} 14... Bg4 {[%clk 0:02:56.6]} 15. Ne5 {[%clk 0:02:38]}
15... Be6 {[%clk 0:02:03.1]} 16. Be3 {[%clk 0:02:34.5]} 16... b6 {[%clk
0:02:03.3]} 17. Qa4 {[%clk 0:02:03.6]} 17... bxc5 {[%clk 0:01:57.2]} 18. Nc6
{[%clk 0:02:04.2]} 18... Rfe8 {[%clk 0:01:57.8]} 19. Rfc1 {[%clk 0:01:42.5]}
19... c4 {[%clk 0:01:19.2]} 20. Nb4 {[%clk 0:01:41.6]} 20... Qe4 {[%clk
0:01:18.6]} 21. Qc6 {[%clk 0:01:40.9]} 21... Qxc6 {[%clk 0:01:06.8]} 22. Nxc6
{[%clk 0:01:41.5]} 22... Bf6 {[%clk 0:01:08.4]} 23. Rc3 {[%clk 0:01:36.8]} 23...
Rec8 {[%clk 0:01:07.2]} 24. Na5 {[%clk 0:01:37.4]} 24... Rab8 {[%clk 0:01:05.4]}
25. b3 {[%clk 0:01:27.5]} 25... cxb3 {[%clk 0:00:57.2]} 26. Rxc8+ {[%clk
0:01:27.6]} 26... Rxc8 {[%clk 0:00:59.1]} 27. Nxb3 {[%clk 0:01:24.6]} 27... Rc2
{[%clk 0:00:55.7]} 28. h3 {[%clk 0:01:19.2]} 28... h5 {[%clk 0:00:54.6]} 29. Nc1
{[%clk 0:01:00.2]} 29... Bc4 {[%clk 0:00:49]} 30. a4 {[%clk 0:00:59.3]} 30... a6
{[%clk 0:00:38]} 31. a5 {[%clk 0:01:00.2]} 31... Kg7 {[%clk 0:00:37.3]} 32. Ra3
{[%clk 0:01:00.2]} 32... e6 {[%clk 0:00:31.5]} 33. Nd3 {[%clk 0:01:01]} 33...
Bxd3 {[%clk 0:00:18.5]} 34. Rxd3 {[%clk 0:01:01.1]} 34... Ra2 {[%clk 0:00:20.1]}
35. d5 {[%clk 0:00:55.8]} 35... Rxa5 {[%clk 0:00:15.9]} 36. dxe6 {[%clk
0:00:52]} 36... fxe6 {[%clk 0:00:17.8]} 37. Rd7+ {[%clk 0:00:53.1]} 37... Kf8
{[%clk 0:00:18.5]} 38. g3 {[%clk 0:00:47.2]} 38... Ra2 {[%clk 0:00:18.1]} 39.
Kg2 {[%clk 0:00:40.3]} 39... a5 {[%clk 0:00:18.6]} 40. g4 {[%clk 0:00:41.4]}
40... hxg4 {[%clk 0:00:18.9]} 41. hxg4 {[%clk 0:00:42.7]} 41... a4 {[%clk
0:00:18.9]} 42. g5 {[%clk 0:00:44.1]} 42... Be5 {[%clk 0:00:18.8]} 43. Bc5+
{[%clk 0:00:42.8]} 43... Kg8 {[%clk 0:00:16.4]} 44. Re7 {[%clk 0:00:43.1]} 44...
Bg7 {[%clk 0:00:13.9]} 45. Rxe6 {[%clk 0:00:40.1]} 45... Rc2 {[%clk 0:00:12.1]}
46. Bb4 {[%clk 0:00:34.3]} 46... Bd4 {[%clk 0:00:09.8]} 47. Rxg6+ {[%clk
0:00:27.9]} 47... Kf7 {[%clk 0:00:10.6]} 48. Ra6 {[%clk 0:00:29.8]} 48... Rxf2+
{[%clk 0:00:11.5]} 49. Kg3 {[%clk 0:00:30.8]} 49... Ra2 {[%clk 0:00:13.1]} 50.
g6+ {[%clk 0:00:30]} 50... Kg7 {[%clk 0:00:13.4]} 51. Kg4 {[%clk 0:00:31.2]}
51... Ba1 {[%clk 0:00:09.2]} 52. Bc5 {[%clk 0:00:29.5]} 52... Rg2+ {[%clk
0:00:07.8]} 53. Kf5 {[%clk 0:00:30.7]} 53... Rc2 {[%clk 0:00:08.4]} 54. Ra7+
{[%clk 0:00:31.4]} 54... Kg8 {[%clk 0:00:09.6]} 55. Ra8+ {[%clk 0:00:30.5]}
55... Kg7 {[%clk 0:00:10.1]} 56. Bf8+ {[%clk 0:00:31]} 56... Kg8 {[%clk
0:00:10.9]} 57. Bh6+ {[%clk 0:00:32]} 1-0

[Event "*** Titled Tuesday 3|2 Blitz (Early)"]
[Site "Chess.com"]
[Date "2016.11.01"]
[Round "2"]
[White "ajkom197"]
[Black "PowerThinking2650"]
[Result "0-1"]
[WhiteElo "2331"]
[BlackElo "2196"]
[TimeControl "180+2"]
[EndTime "11:23:17 PDT"]
[Termination "PowerThinking2650 won by resignation"]

1. d4 {[%clk 0:03:02]} 1... Nf6 {[%clk 0:03:00.8]} 2. Bf4 {[%clk 0:03:02.6]}
2... g6 {[%clk 0:03:00.6]} 3. e3 {[%clk 0:03:03.7]} 3... Bg7 {[%clk 0:03:01.7]}
4. Be2 {[%clk 0:03:04.9]} 4... O-O {[%clk 0:03:02.2]} 5. h3 {[%clk 0:03:02.9]}
5... d6 {[%clk 0:02:59.1]} 6. Nf3 {[%clk 0:03:03.7]} 6... b6 {[%clk 0:02:56.6]}
7. O-O {[%clk 0:03:04.2]} 7... Bb7 {[%clk 0:02:51.3]} 8. a4 {[%clk 0:03:05]}
8... a6 {[%clk 0:02:50.2]} 9. a5 {[%clk 0:03:04.6]} 9... b5 {[%clk 0:02:49.8]}
10. Nbd2 {[%clk 0:03:00.7]} 10... Nbd7 {[%clk 0:02:46.9]} 11. c3 {[%clk
0:03:00.8]} 11... Re8 {[%clk 0:02:44.9]} 12. Bh2 {[%clk 0:03:01.2]} 12... e5
{[%clk 0:02:45.2]} 13. b4 {[%clk 0:02:55.6]} 13... e4 {[%clk 0:02:40.9]} 14. Ne1
{[%clk 0:02:53.8]} 14... Nd5 {[%clk 0:02:37.9]} 15. Qb3 {[%clk 0:02:50.4]} 15...
f5 {[%clk 0:02:13.6]} 16. Rc1 {[%clk 0:02:48.8]} 16... Kh8 {[%clk 0:02:10.4]}
17. c4 {[%clk 0:02:48.2]} 17... bxc4 {[%clk 0:02:08.3]} 18. Bxc4 {[%clk
0:02:46.4]} 18... N7f6 {[%clk 0:02:08.7]} 19. Nc2 {[%clk 0:02:40.8]} 19... g5
{[%clk 0:02:02.5]} 20. Nb1 {[%clk 0:02:34.1]} 20... f4 {[%clk 0:01:57.7]} 21.
Nc3 {[%clk 0:02:34]} 21... Nxc3 {[%clk 0:01:52.7]} 22. Qxc3 {[%clk 0:02:33.7]}
22... f3 {[%clk 0:01:52.2]} 23. Rfd1 {[%clk 0:02:23.5]} 23... fxg2 {[%clk
0:01:50]} 24. Kxg2 {[%clk 0:02:22.9]} 24... Qd7 {[%clk 0:01:41.3]} 25. Be2
{[%clk 0:02:22.7]} 25... Bc8 {[%clk 0:01:37.8]} 26. Rh1 {[%clk 0:02:14.5]} 26...
Qxh3+ {[%clk 0:01:37.5]} 27. Kg1 {[%clk 0:02:15.5]} 27... Nd5 {[%clk 0:01:19.5]}
28. Qc6 {[%clk 0:02:14.9]} 28... Be6 {[%clk 0:01:05.7]} 29. Be5 {[%clk
0:01:57.9]} 29... Qf5 {[%clk 0:00:58.4]} 30. Bxg7+ {[%clk 0:01:56.1]} 30... Kxg7
{[%clk 0:00:58.6]} 31. Ne1 {[%clk 0:01:50.2]} 31... Rf8 {[%clk 0:00:57.4]} 32.
Rh2 {[%clk 0:01:50.6]} 32... Bd7 {[%clk 0:00:46.3]} 33. Qc2 {[%clk 0:01:45]}
33... Bb5 {[%clk 0:00:46.4]} 34. Bxb5 {[%clk 0:01:43.3]} 34... axb5 {[%clk
0:00:47.5]} 35. Rg2 {[%clk 0:01:41.2]} 35... Rf7 {[%clk 0:00:43.2]} 36. Qe2
{[%clk 0:01:41.2]} 36... Nxb4 {[%clk 0:00:38.9]} 37. Rb1 {[%clk 0:01:29]} 37...
Nd3 {[%clk 0:00:21]} 38. Qh5 {[%clk 0:01:28.5]} 38... h6 {[%clk 0:00:20.1]} 39.
Nxd3 {[%clk 0:01:25.9]} 39... exd3 {[%clk 0:00:21]} 40. Rd1 {[%clk 0:01:26.9]}
40... Rxa5 {[%clk 0:00:20.3]} 41. f4 {[%clk 0:01:26.9]} 41... b4 {[%clk
0:00:19.4]} 42. Rh2 {[%clk 0:01:26.1]} 42... Qg6 {[%clk 0:00:15.5]} 43. Qxg6+
{[%clk 0:01:21.1]} 43... Kxg6 {[%clk 0:00:16.6]} 44. Rxd3 {[%clk 0:01:22.6]}
44... Ra1+ {[%clk 0:00:13]} 45. Kf2 {[%clk 0:01:22.7]} 45... Ra2+ {[%clk
0:00:14]} 46. Kg1 {[%clk 0:01:23.6]} 46... Rxh2 {[%clk 0:00:14.3]} 47. Kxh2
{[%clk 0:01:25.5]} 47... gxf4 {[%clk 0:00:15.7]} 48. e4 {[%clk 0:01:26.6]} 48...
Kg5 {[%clk 0:00:14.3]} 49. d5 {[%clk 0:01:27.3]} 49... Kg4 {[%clk 0:00:14.4]}
50. Rb3 {[%clk 0:01:27.8]} 50... f3 {[%clk 0:00:11.5]} 51. e5 {[%clk 0:01:28.5]}
51... f2 {[%clk 0:00:10.4]} 52. Rxb4+ {[%clk 0:01:29.7]} 52... Kg5 {[%clk
0:00:11]} 53. e6 {[%clk 0:01:29]} 53... f1=Q {[%clk 0:00:10.1]} 54. exf7 {[%clk
0:01:30.9]} 54... Qf2+ {[%clk 0:00:10.4]} 55. Kh3 {[%clk 0:01:30]} 55... Qf3+
{[%clk 0:00:10.6]} 56. Kh2 {[%clk 0:01:30.6]} 56... Qxf7 {[%clk 0:00:11.5]} 57.
Rb3 {[%clk 0:01:28.8]} 57... Qf4+ {[%clk 0:00:11.7]} 58. Kh3 {[%clk 0:01:27.1]}
58... Qg4+ {[%clk 0:00:11.4]} 59. Kh2 {[%clk 0:01:26.1]} 59... Qe2+ {[%clk
0:00:12.3]} 60. Kh3 {[%clk 0:01:27.3]} 60... h5 {[%clk 0:00:10.9]} 61. Rg3+
{[%clk 0:01:27.4]} 61... Qg4+ {[%clk 0:00:12]} 62. Kh2 {[%clk 0:01:26.9]} 62...
h4 {[%clk 0:00:13.4]} 63. Rc3 {[%clk 0:01:25.8]} 63... Qf4+ {[%clk 0:00:14]} 64.
Kh3 {[%clk 0:01:26.3]} 64... Qf5+ {[%clk 0:00:15]} 65. Kh2 {[%clk 0:01:27.4]}
65... Qe5+ {[%clk 0:00:15.8]} 66. Kg2 {[%clk 0:01:27.5]} 66... Qxc3 {[%clk
0:00:16.4]} 67. Kh2 {[%clk 0:01:28.8]} 67... Qg3+ {[%clk 0:00:16.1]} 68. Kh1
{[%clk 0:01:29.7]} 68... Qg4 {[%clk 0:00:17.4]} 69. Kh2 {[%clk 0:01:30.6]} 69...
Kf4 {[%clk 0:00:19]} 0-1

[Event "*** Titled Tuesday 3|2 Blitz (Early)"]
[Site "Chess.com"]
[Date "2016.11.01"]
[Round "2"]
[White "NoWuss2"]
[Black "michaelk123"]
[Result "0-1"]
[WhiteElo "2086"]
[BlackElo "2169"]
[TimeControl "180+2"]
[EndTime "11:23:30 PDT"]
[Termination "michaelk123 won on time"]

1. e4 {[%clk 0:03:02]} 1... e6 {[%clk 0:02:58.7]} 2. Nf3 {[%clk 0:03:03.1]} 2...
c5 {[%clk 0:02:50.8]} 3. b4 {[%clk 0:03:03.1]} 3... cxb4 {[%clk 0:02:50.3]} 4.
d4 {[%clk 0:03:03.7]} 4... d5 {[%clk 0:02:46.9]} 5. e5 {[%clk 0:03:05]} 5... Nc6
{[%clk 0:02:46.9]} 6. a3 {[%clk 0:03:06.4]} 6... Nh6 {[%clk 0:02:43]} 7. Bxh6
{[%clk 0:02:53.9]} 7... gxh6 {[%clk 0:02:43.1]} 8. axb4 {[%clk 0:02:54.7]} 8...
Nxb4 {[%clk 0:02:43.8]} 9. c3 {[%clk 0:02:56.2]} 9... Nc6 {[%clk 0:02:43.4]} 10.
Bd3 {[%clk 0:02:58.1]} 10... Rg8 {[%clk 0:02:19.7]} 11. O-O {[%clk 0:02:53.3]}
11... Rg7 {[%clk 0:02:09.7]} 12. Na3 {[%clk 0:02:52.8]} 12... f6 {[%clk
0:02:02.7]} 13. exf6 {[%clk 0:02:15.8]} 13... Qxf6 {[%clk 0:02:03.1]} 14. Re1
{[%clk 0:02:12.6]} 14... Bd6 {[%clk 0:01:40.4]} 15. Nb5 {[%clk 0:02:13.8]} 15...
Bb8 {[%clk 0:01:41]} 16. c4 {[%clk 0:02:14.6]} 16... Kf8 {[%clk 0:00:56.5]} 17.
Qe2 {[%clk 0:01:42.8]} 17... Bd7 {[%clk 0:00:36.9]} 18. c5 {[%clk 0:01:00.1]}
18... Kf7 {[%clk 0:00:15.9]} 19. Rad1 {[%clk 0:00:29.3]} 19... a6 {[%clk
0:00:14.7]} 20. Nd6+ {[%clk 0:00:30]} 20... Bxd6 {[%clk 0:00:14.9]} 21. cxd6
{[%clk 0:00:31.9]} 21... Rag8 {[%clk 0:00:11.2]} 22. g3 {[%clk 0:00:30.5]} 22...
h5 {[%clk 0:00:11.9]} 23. Ne5+ {[%clk 0:00:31.5]} 23... Nxe5 {[%clk 0:00:10.7]}
24. dxe5 {[%clk 0:00:32.2]} 24... Qd8 {[%clk 0:00:07.2]} 25. Qxh5+ {[%clk
0:00:32.8]} 25... Kf8 {[%clk 0:00:05.9]} 26. Bxh7 {[%clk 0:00:28.3]} 26... Rh8
{[%clk 0:00:06.4]} 27. Qf3+ {[%clk 0:00:29]} 27... Rf7 {[%clk 0:00:06.9]} 28.
Qd3 {[%clk 0:00:04.1]} 28... Rhxh7 {[%clk 0:00:08.4]} 29. Rc1 {[%clk 0:00:05.5]}
29... Bc6 {[%clk 0:00:09.9]} 30. Rxc6 {[%clk 0:00:06.6]} 30... bxc6 {[%clk
0:00:11]} 31. Rc1 {[%clk 0:00:07.8]} 31... Qb6 {[%clk 0:00:11.5]} 32. Rc2 {[%clk
0:00:07.6]} 32... c5 {[%clk 0:00:12]} 33. Kg2 {[%clk 0:00:08.9]} 33... c4 {[%clk
0:00:13]} 34. Qg6 {[%clk 0:00:09.8]} 34... Rhg7 {[%clk 0:00:11.8]} 35. Qxe6
{[%clk 0:00:10.5]} 35... Qc6 {[%clk 0:00:12.2]} 36. Rb2 {[%clk 0:00:07.1]} 36...
Rb7 {[%clk 0:00:06.3]} 37. Qf6+ {[%clk 0:00:07.1]} 37... Ke8 {[%clk 0:00:05.1]}
38. e6 {[%clk 0:00:05]} 38... d4+ {[%clk 0:00:05.1]} 39. Kg1 {[%clk 0:00:06]}
39... Rxb2 {[%clk 0:00:04.4]} 40. d7+ {[%clk 0:00:06.8]} 40... Rxd7 {[%clk
0:00:04.6]} 41. exd7+ {[%clk 0:00:08.7]} 41... Kxd7 {[%clk 0:00:05.2]} 42. Qxd4+
{[%clk 0:00:09.6]} 42... Kc7 {[%clk 0:00:03.8]} 43. Qxb2 {[%clk 0:00:10.7]}
43... c3 {[%clk 0:00:04.9]} 44. Qc1 {[%clk 0:00:11.7]} 44... c2 {[%clk 0:00:05]}
45. h4 {[%clk 0:00:12.9]} 45... Qc3 {[%clk 0:00:05.7]} 46. Kf1 {[%clk
0:00:13.5]} 46... Qd3+ {[%clk 0:00:05.8]} 47. Ke1 {[%clk 0:00:14.8]} 47... a5
{[%clk 0:00:03]} 48. h5 {[%clk 0:00:15.8]} 48... a4 {[%clk 0:00:04]} 49. Qd2
{[%clk 0:00:13.3]} 49... Qe4+ {[%clk 0:00:02.1]} 50. Kf1 {[%clk 0:00:14.2]}
50... a3 {[%clk 0:00:03.2]} 51. Qc3+ {[%clk 0:00:15.4]} 51... Kd7 {[%clk
0:00:03.5]} 52. Qxa3 {[%clk 0:00:16.4]} 52... Qc4+ {[%clk 0:00:04.5]} 53. Kg2
{[%clk 0:00:15.2]} 53... c1=Q {[%clk 0:00:06.4]} 54. Qxc1 {[%clk 0:00:16]} 54...
Qxc1 {[%clk 0:00:07.2]} 55. g4 {[%clk 0:00:15.7]} 55... Ke6 {[%clk 0:00:08.6]}
56. Kg3 {[%clk 0:00:14.3]} 56... Kf6 {[%clk 0:00:10.3]} 57. f4 {[%clk
0:00:14.2]} 57... Qe3+ {[%clk 0:00:11.7]} 0-1

[Event "*** Titled Tuesday 3|2 Blitz (Early)"]
[Site "Chess.com"]
[Date "2016.11.01"]
[Round "2"]
[White "IMJonathanCarlstedt"]
[Black "GMKrikor"]
[Result "0-1"]
[WhiteElo "2402"]
[BlackElo "2583"]
[TimeControl "180+2"]
[EndTime "11:24:46 PDT"]
[Termination "GMKrikor won by resignation"]

1. c4 {[%clk 0:02:56.8]} 1... e5 {[%clk 0:02:55.2]} 2. g3 {[%clk 0:02:58.1]}
2... Nf6 {[%clk 0:02:55.1]} 3. Bg2 {[%clk 0:02:59.6]} 3... d5 {[%clk 0:02:55.1]}
4. cxd5 {[%clk 0:03:01.1]} 4... Nxd5 {[%clk 0:02:56.4]} 5. Nc3 {[%clk
0:03:02.6]} 5... Nb6 {[%clk 0:02:57.7]} 6. Nf3 {[%clk 0:03:04.1]} 6... Nc6
{[%clk 0:02:59.1]} 7. O-O {[%clk 0:03:05.4]} 7... Be7 {[%clk 0:03:00.5]} 8. d3
{[%clk 0:03:05.6]} 8... O-O {[%clk 0:03:00.8]} 9. Be3 {[%clk 0:03:06.6]} 9...
Re8 {[%clk 0:03:00]} 10. Rc1 {[%clk 0:03:05]} 10... Bf8 {[%clk 0:03:00.9]} 11.
a3 {[%clk 0:03:06.1]} 11... Nd4 {[%clk 0:02:59.8]} 12. Bxd4 {[%clk 0:02:58.4]}
12... exd4 {[%clk 0:03:00.8]} 13. Nb5 {[%clk 0:02:59.8]} 13... c5 {[%clk
0:02:51.6]} 14. b4 {[%clk 0:03:01.2]} 14... a6 {[%clk 0:01:51.8]} 15. bxc5
{[%clk 0:03:00.4]} 15... axb5 {[%clk 0:01:53.1]} 16. cxb6 {[%clk 0:03:02]} 16...
Qxb6 {[%clk 0:01:55]} 17. Rc2 {[%clk 0:02:32.8]} 17... Rxa3 {[%clk 0:01:48.3]}
18. Qb1 {[%clk 0:02:30.9]} 18... b4 {[%clk 0:01:24.2]} 19. Qb2 {[%clk
0:02:30.9]} 19... Rc3 {[%clk 0:01:17]} 20. Rb1 {[%clk 0:02:27.3]} 20... Bd7
{[%clk 0:01:00.4]} 21. Ng5 {[%clk 0:02:13.2]} 21... Ba4 {[%clk 0:00:28.8]} 22.
Rcc1 {[%clk 0:02:13.3]} 22... Qc7 {[%clk 0:00:22.3]} 23. Ne4 {[%clk 0:02:10.2]}
23... Rc8 {[%clk 0:00:18.2]} 24. Nxc3 {[%clk 0:02:08.1]} 24... dxc3 {[%clk
0:00:20.1]} 25. Qa2 {[%clk 0:02:08.6]} 25... b5 {[%clk 0:00:21.5]} 26. Bd5
{[%clk 0:02:08.1]} 26... g6 {[%clk 0:00:22]} 27. Bb3 {[%clk 0:02:07.1]} 27...
Ra8 {[%clk 0:00:23]} 28. e3 {[%clk 0:02:04.1]} 28... Kg7 {[%clk 0:00:24.4]} 29.
d4 {[%clk 0:02:04.7]} 29... Bd6 {[%clk 0:00:25.9]} 30. Qe2 {[%clk 0:01:45.3]}
30... Bxb3 {[%clk 0:00:25.1]} 31. Rxb3 {[%clk 0:01:45.8]} 31... Qc4 {[%clk
0:00:27]} 32. Qc2 {[%clk 0:01:42.8]} 32... Ra3 {[%clk 0:00:26.1]} 33. Rcb1
{[%clk 0:01:39.4]} 33... Rxb3 {[%clk 0:00:25.8]} 34. Rxb3 {[%clk 0:01:38.6]}
34... Be7 {[%clk 0:00:15.8]} 35. Rb1 {[%clk 0:01:38.3]} 35... Bf8 {[%clk
0:00:16.4]} 36. Rb3 {[%clk 0:01:38.8]} 36... Be7 {[%clk 0:00:17.6]} 37. Rb1
{[%clk 0:01:39.7]} 37... f5 {[%clk 0:00:19.2]} 38. Rb3 {[%clk 0:01:40.1]} 38...
Kf6 {[%clk 0:00:20.8]} 39. Kg2 {[%clk 0:01:38.8]} 39... Ke6 {[%clk 0:00:22.2]}
40. f3 {[%clk 0:01:37.8]} 40... Kd5 {[%clk 0:00:22.8]} 41. Kf2 {[%clk
0:01:38.2]} 41... Bf6 {[%clk 0:00:24.3]} 42. Rb1 {[%clk 0:01:35.5]} 42... Be7
{[%clk 0:00:25.4]} 43. e4+ {[%clk 0:01:36.2]} 43... Ke6 {[%clk 0:00:26.4]} 44.
exf5+ {[%clk 0:01:34.3]} 44... Kf7 {[%clk 0:00:23.8]} 45. fxg6+ {[%clk
0:01:32.9]} 45... hxg6 {[%clk 0:00:25.7]} 46. Re1 {[%clk 0:01:31.4]} 46... Qxd4+
{[%clk 0:00:21.5]} 47. Kg2 {[%clk 0:01:31.7]} 47... Bf6 {[%clk 0:00:15.4]} 48.
Qb3+ {[%clk 0:01:32.5]} 48... Qc4 {[%clk 0:00:16.3]} 49. Qd1 {[%clk 0:01:29.4]}
49... Qc6 {[%clk 0:00:13.4]} 50. Qb3+ {[%clk 0:01:28.1]} 50... Qc4 {[%clk
0:00:09.9]} 51. Qd1 {[%clk 0:01:27.8]} 51... Qc6 {[%clk 0:00:10.7]} 52. Qa1
{[%clk 0:01:25.3]} 52... Be7 {[%clk 0:00:08.1]} 53. Qa7 {[%clk 0:01:24.2]} 53...
Qc5 {[%clk 0:00:09.2]} 54. Qb8 {[%clk 0:01:17.6]} 54... Qd6 {[%clk 0:00:09]} 55.
Qh8 {[%clk 0:01:00]} 55... Qd2+ {[%clk 0:00:06.4]} 56. Kf1 {[%clk 0:01:01]}
56... Qd3+ {[%clk 0:00:08]} 57. Kg2 {[%clk 0:00:59.9]} 57... Qd2+ {[%clk
0:00:09.5]} 58. Kf1 {[%clk 0:01:00.8]} 58... Qd3+ {[%clk 0:00:11.1]} 59. Kg2
{[%clk 0:00:58.1]} 59... Qd6 {[%clk 0:00:06.2]} 60. Qh7+ {[%clk 0:00:57]} 60...
Ke8 {[%clk 0:00:07.7]} 61. Qg8+ {[%clk 0:00:56.8]} 61... Kd7 {[%clk 0:00:09.2]}
62. Qb3 {[%clk 0:00:56.4]} 62... Bf6 {[%clk 0:00:10.1]} 63. Rd1 {[%clk
0:00:56.5]} 63... Bd4 {[%clk 0:00:11.5]} 64. Qf7+ {[%clk 0:00:55.8]} 64... Kc6
{[%clk 0:00:13]} 65. Qe8+ {[%clk 0:00:56.9]} 65... Kc5 {[%clk 0:00:14.2]} 66.
Qe2 {[%clk 0:00:55.2]} 66... b3 {[%clk 0:00:13.8]} 67. Qe8 {[%clk 0:00:39.9]}
67... c2 {[%clk 0:00:13.2]} 68. Qc8+ {[%clk 0:00:40.4]} 68... Kb4 {[%clk
0:00:14.1]} 69. Re1 {[%clk 0:00:31.6]} 69... Qd5 {[%clk 0:00:08.9]} 70. Qf8+
{[%clk 0:00:30.7]} 70... Bc5 {[%clk 0:00:10]} 71. Qf4+ {[%clk 0:00:31.4]} 71...
Qc4 {[%clk 0:00:07.1]} 72. Qc1 {[%clk 0:00:31.5]} 72... Bd4 {[%clk 0:00:08]} 73.
Re4 {[%clk 0:00:24.1]} 73... Qc3 {[%clk 0:00:09.6]} 74. Qf4 {[%clk 0:00:22.9]}
74... c1=Q {[%clk 0:00:06.2]} 75. Rxd4+ {[%clk 0:00:24]} 75... Ka3 {[%clk
0:00:07.9]} 76. Qd6+ {[%clk 0:00:22.4]} 76... Kb2 {[%clk 0:00:09.3]} 77. h4
{[%clk 0:00:17.6]} 77... b4 {[%clk 0:00:09.1]} 78. Re4 {[%clk 0:00:16.9]} 78...
Q1d2+ {[%clk 0:00:09]} 79. Qxd2+ {[%clk 0:00:18.4]} 79... Qxd2+ {[%clk
0:00:10.4]} 80. Kf1 {[%clk 0:00:20.3]} 80... Kc2 {[%clk 0:00:11.9]} 81. Re2
{[%clk 0:00:20.4]} 81... b2 {[%clk 0:00:13.6]} 82. Rxd2+ {[%clk 0:00:22]} 82...
Kxd2 {[%clk 0:00:15]} 83. g4 {[%clk 0:00:23.7]} 83... b1=Q+ {[%clk 0:00:16.2]}
0-1